bitfinex-derivatives/quotes_BNBF0:USTF0_20260114
["timestamp","ask_amount","ask_price","bid_price","bid_amount"]
[1768389627575,0.77894196,930.82,928.76,2.6562837]
[1768389627777,0.77894196,930.81,928.76,2.6562837]
[1768389627973,0.77894196,930.8,928.76,2.6562837]
[1768389628274,0.77894196,930.79,928.76,2.6562837]
[1768389628478,0.77894196,930.78,928.76,2.6562837]
[1768389628671,0.77894196,930.77,928.75,2.6562837]
[1768389628873,0.77894196,930.76,928.75,2.6562837]
[1768389629075,0.77894196,930.75,928.75,2.6562837]
[1768389629371,0.77894196,930.74,928.75,2.6562837]
[1768389629571,0.77871212,930.73,928.75,2.6562837]
[1768389629772,0.77871212,930.72,928.75,2.6562837]
[1768389629972,0.77871212,930.71,928.75,2.6562837]
[1768389630174,0.77871212,930.7,928.75,2.6562837]
[1768389630477,0.77871212,930.69,928.75,2.6562837]
[1768389630773,0.77871212,930.68,928.74,2.6562837]
[1768389630971,0.77871212,930.67,928.74,2.6562837]
[1768389631174,0.77871212,930.66,928.74,2.6562837]
[1768389631372,0.77871212,930.65,928.74,2.6562837]
[1768389631576,0.77871212,930.64,928.74,2.6562837]
[1768389631777,0.77871212,930.63,928.75,2.6562837]
[1768389631977,0.77871212,930.62,928.75,2.6562837]
[1768389632171,0.77871212,930.61,928.75,2.6562837]
[1768389632371,0.77890999,930.6,928.75,2.6562837]
[1768389632576,1.319,930.89,928.75,2.6562837]
[1768389632773,0.77891047,930.88,928.75,2.6562837]
[1768389632974,0.77891047,930.87,928.75,2.6562837]
[1768389633273,0.77891047,930.86,928.76,2.6562837]
[1768389633474,0.77891047,930.85,928.76,2.6562837]
[1768389633781,0.77891047,930.84,928.76,2.6562837]
[1768389633975,0.77891047,930.83,928.76,2.6562837]
[1768389634278,0.77891047,930.82,928.78,2.6562837]
[1768389634479,0.77891047,930.81,928.78,2.6562837]
[1768389634679,0.77891047,930.8,928.78,2.6562837]
[1768389634876,0.77891047,930.79,928.78,2.6562837]
[1768389635080,0.77891047,930.78,928.78,2.6562837]
[1768389635282,0.77891047,930.77,928.79,2.6562837]
[1768389635486,0.77891047,930.76,928.79,2.6562837]
[1768389635684,0.77891047,930.75,928.79,2.6562837]
[1768389635885,0.77891047,930.74,928.79,2.6562837]
[1768389636084,0.77891047,930.73,928.79,2.6562837]
[1768389636283,0.77891047,930.72,928.79,2.6562837]
[1768389636485,0.77891047,930.71,928.8,2.6562837]
[1768389636782,0.77891047,930.7,928.8,2.6562837]
[1768389636987,0.77891047,930.69,928.79,2.6562837]
[1768389637288,0.77891047,930.68,928.79,2.6562837]
[1768389637583,0.77891047,930.67,928.8,2.6562837]
[1768389637787,0.77891047,930.66,928.8,2.6562837]
[1768389637988,0.77891047,930.65,928.8,2.6562837]
[1768389638186,0.77891047,930.64,928.8,2.6562837]
[1768389638387,0.77891047,930.63,928.81,2.6562837]
[1768389638586,0.77638043,930.62,928.81,2.6562837]
[1768389638887,0.77638043,930.61,928.81,2.6562837]
[1768389639088,0.77638043,930.6,928.81,2.6562837]
[1768389639284,0.77638043,930.59,928.81,2.6562837]
[1768389639483,0.77638043,930.58,928.81,2.6562837]
[1768389639686,0.77638043,930.57,928.81,2.6562837]
[1768389639886,0.77638043,930.56,928.81,2.6562837]
[1768389640187,1.319,930.89,928.81,2.6562837]
[1768389640488,0.7764044,930.88,928.74,2.6562837]
[1768389640788,1.319,930.89,928.74,2.6562837]
[1768389640789,0.7764044,930.87,928.74,2.6562837]
[1768389640982,0.7764044,930.86,928.74,2.6562837]
[1768389641189,0.7764044,930.85,928.74,2.6562837]
[1768389641386,0.7764044,930.84,928.74,2.6562837]
[1768389641584,0.7764044,930.83,928.75,2.6562837]
[1768389641784,0.7764044,930.82,928.75,2.6562837]
[1768389641984,0.7764044,930.81,928.75,2.6562837]
[1768389642185,0.7764044,930.8,928.75,2.6562837]
[1768389642390,0.7764044,930.79,928.75,2.6562837]
[1768389642591,0.7764044,930.78,928.76,2.6562837]
[1768389642791,0.7764044,930.77,928.76,2.6562837]
[1768389642992,0.7764044,930.76,928.76,2.6562837]
[1768389643292,0.7764044,930.75,928.76,2.6562837]
[1768389643488,0.7764044,930.74,928.76,2.6562837]
[1768389643692,0.7764044,930.73,928.77,2.6562837]
[1768389643893,0.7764044,930.72,928.77,2.6562837]
[1768389644089,0.7764044,930.71,928.78,2.6562837]
[1768389644294,0.7764044,930.7,928.78,2.6562837]
[1768389644494,0.7764044,930.69,928.78,2.6562837]
[1768389644695,0.7764044,930.68,928.79,2.6562837]
[1768389644995,0.7764044,930.67,928.79,2.6562837]
[1768389645192,0.7764044,930.66,928.79,2.6562837]
[1768389645396,0.7764044,930.65,928.79,2.6562837]
[1768389645593,0.7764044,930.64,928.79,2.6562837]
[1768389645793,0.7764044,930.63,928.79,2.6562837]
[1768389645993,0.7764044,930.62,928.79,2.6562837]
[1768389646193,0.7764044,930.61,928.79,2.6562837]
[1768389646393,0.7764044,930.6,928.79,2.6562837]
[1768389646695,0.7764044,930.59,928.79,2.6562837]
[1768389646897,0.77777506,930.58,928.79,2.6562837]
[1768389647097,0.77777506,930.57,928.79,2.6562837]
[1768389647296,1.319,930.89,928.72,0.18702639]
[1768389647297,0.77777506,930.56,928.8,2.6562837]
[1768389647497,0.77777506,930.55,928.8,2.6562837]
[1768389647692,0.77777506,930.54,928.8,2.6562837]
[1768389647893,0.77777506,930.53,928.8,2.6562837]
[1768389648093,0.77777506,930.52,928.8,2.6562837]
[1768389648297,0.77777506,930.51,928.81,2.6562837]
[1768389648495,0.77777506,930.5,928.81,2.6562837]
[1768389648697,0.77777506,930.49,928.81,2.6562837]
[1768389648893,0.77777506,930.48,928.81,2.6562837]
[1768389649195,0.77777506,930.47,928.81,2.6562837]
[1768389649396,0.77777506,930.46,928.83,2.6562837]
[1768389649598,0.77777506,930.45,928.83,2.6562837]
[1768389649797,0.77777506,930.44,928.82,2.6562837]
[1768389650095,0.77777506,930.43,928.82,2.6562837]
[1768389650294,0.77777506,930.42,928.82,2.6562837]
[1768389650496,0.77777506,930.41,928.82,2.6562837]
[1768389650799,0.77777506,930.4,928.82,2.6562837]
[1768389651001,0.77777506,930.39,928.82,2.6562837]
[1768389651197,0.77777506,930.38,928.82,2.6562837]
[1768389651400,0.77777506,930.37,928.84,2.6562837]
[1768389651696,0.77777506,930.36,928.84,2.6562837]
[1768389651900,0.77777506,930.35,928.84,2.6562837]
[1768389652200,0.77777506,930.34,928.84,2.6562837]
[1768389652399,0.77777506,930.33,928.85,2.6562837]
[1768389652600,1.319,930.89,928.85,2.6562837]
[1768389652799,0.77910164,930.88,928.85,2.6562837]
[1768389652996,0.77910164,930.87,928.85,2.6562837]
[1768389653200,0.77910164,930.86,928.85,2.6562837]
[1768389653401,0.77910164,930.85,928.88,2.6562837]
[1768389653601,0.77910164,930.84,928.88,2.6562837]
[1768389653799,0.77910164,930.83,928.88,2.6562837]
[1768389653997,0.77910164,930.82,928.88,2.6562837]
[1768389654299,0.77910164,930.81,928.88,2.6562837]
[1768389654502,0.77910164,930.8,928.89,2.6562837]
[1768389654702,0.77910164,930.79,928.89,2.6562837]
[1768389654902,0.77910164,930.78,928.89,2.6562837]
[1768389655100,0.77910164,930.77,928.89,2.6562837]
[1768389655302,0.77910164,930.76,928.89,2.6562837]
[1768389655500,0.77910164,930.75,928.91,2.6562837]
[1768389655698,0.77910164,930.74,928.91,2.6562837]
[1768389656000,0.77910164,930.73,928.91,2.6562837]
[1768389656201,0.77910164,930.72,928.91,2.6562837]
[1768389656404,0.77910164,930.71,928.8,2.6562837]
[1768389656604,0.77910164,930.7,928.8,2.6562837]
[1768389656805,0.77910164,930.69,928.8,2.6562837]
[1768389657002,0.77910164,930.68,928.8,2.6562837]
[1768389657301,0.77910164,930.67,928.79,2.6562837]
[1768389657604,0.77910164,930.66,928.79,2.6562837]
[1768389657804,0.77910164,930.65,928.79,2.6562837]
[1768389658005,0.77910164,930.64,928.79,2.6562837]
[1768389658201,0.77910164,930.63,928.79,2.6562837]
[1768389658404,0.77910164,930.62,928.79,2.6562837]
[1768389658600,0.77910164,930.61,928.79,2.6562837]
[1768389658803,0.77910164,930.6,928.79,2.6562837]
[1768389659002,0.77910164,930.59,928.79,2.6562837]
[1768389659207,0.77910164,930.58,928.79,2.6562837]
[1768389659405,0.77910164,930.57,928.79,2.6562837]
[1768389659607,0.77910164,930.56,928.78,2.6562837]
[1768389659806,1.182,930.65,928.78,2.6562837]
[1768389659807,0.77910164,930.55,928.78,2.6562837]
[1768389660106,0.77910164,930.54,928.78,2.6562837]
[1768389660406,0.77910164,930.53,928.78,2.6562837]
[1768389660607,0.77910164,930.52,928.78,2.6562837]
[1768389660804,0.77910164,930.51,928.78,2.6562837]
[1768389661108,0.77910164,930.5,928.78,2.6562837]
[1768389661308,0.77910164,930.49,928.78,2.6562837]
[1768389661503,0.77910164,930.48,928.77,2.6562837]
[1768389661710,0.77910164,930.47,928.77,2.6562837]
[1768389662010,0.77910164,930.46,928.77,2.6562837]
[1768389662207,0.77910164,930.45,928.77,2.6562837]
[1768389662411,0.77910164,930.44,928.77,2.6562837]
[1768389662707,0.77910164,930.43,928.77,2.6562837]
[1768389662907,0.77910164,930.42,928.77,2.6562837]
[1768389663105,1.182,930.65,928.77,2.6562837]
[1768389663106,0.77910164,930.41,928.77,2.6562837]
[1768389663306,0.77910164,930.4,928.77,2.6562837]
[1768389663607,0.77910164,930.39,928.77,2.6562837]
[1768389663909,0.77910164,930.38,928.77,2.6562837]
[1768389664110,0.77910164,930.37,928.77,2.6562837]
[1768389664306,0.77910164,930.36,928.77,2.6562837]
[1768389664510,0.77910164,930.35,928.77,2.6562837]
[1768389664705,0.77910164,930.34,928.76,2.6562837]
[1768389664907,0.77910164,930.33,928.76,2.6562837]
[1768389665108,0.77910164,930.32,928.76,2.6562837]
[1768389665313,0.77910164,930.31,928.76,2.6562837]
[1768389665509,0.77910164,930.3,928.76,2.6562837]
[1768389665810,0.77910164,930.29,928.76,2.6562837]
[1768389666008,0.77910164,930.28,928.76,2.6562837]
[1768389666208,0.77910164,930.27,928.76,2.6562837]
[1768389666412,0.77910164,930.26,928.76,2.6562837]
[1768389666608,0.77910164,930.25,928.76,2.6562837]
[1768389666812,0.77910164,930.24,928.74,2.6562837]
[1768389667014,0.77910164,930.23,928.74,2.6562837]
[1768389667208,0.77910164,930.22,928.74,2.6562837]
[1768389667410,0.77910164,930.21,928.74,2.6562837]
[1768389667615,0.77891509,930.2,928.74,2.6562837]
[1768389667813,1.182,930.65,928.73,2.6562837]
[1768389668011,0.77891509,930.64,928.73,2.6562837]
[1768389668211,0.77891509,930.63,928.73,2.6562837]
[1768389668412,0.77891509,930.62,928.73,2.6562837]
[1768389668614,0.77891509,930.61,928.73,2.6562837]
[1768389668811,0.77891509,930.6,928.73,2.6562837]
[1768389669110,0.77891509,930.59,928.73,2.6562837]
[1768389669410,0.77891509,930.58,928.72,2.84331009]
[1768389669611,0.77891509,930.57,928.72,2.84331009]
[1768389669914,0.77891509,930.56,928.72,2.84331009]
[1768389670114,0.77891509,930.55,928.72,2.84331009]
[1768389670314,0.77891509,930.54,928.72,2.84331009]
[1768389670514,0.77891509,930.53,928.72,2.84331009]
[1768389670714,0.77891509,930.52,928.72,2.84331009]
[1768389670914,0.77891509,930.51,928.72,2.84331009]
[1768389671115,0.77886721,930.5,928.72,2.84331009]
[1768389671318,0.77886721,930.49,928.72,2.84331009]
[1768389671513,0.77886721,930.48,928.72,2.84331009]
[1768389671714,0.77886721,930.47,928.72,2.84331009]
[1768389671914,0.77886721,930.46,928.72,2.84331009]
[1768389672115,0.77886721,930.45,928.72,2.84331009]
[1768389672314,0.77886721,930.44,928.72,2.84331009]
[1768389672618,0.77886721,930.43,928.73,2.6562837]
[1768389672818,0.77886721,930.42,928.73,2.6562837]
[1768389673118,0.77886721,930.41,928.73,2.6562837]
[1768389673314,0.77886721,930.4,928.73,2.6562837]
[1768389673513,0.77886721,930.39,928.73,2.6562837]
[1768389673713,0.77886721,930.38,928.73,2.6562837]
[1768389673913,0.77886721,930.37,928.73,2.6562837]
[1768389674115,0.77886721,930.36,928.73,2.6562837]
[1768389674318,0.77886721,930.35,928.73,2.6562837]
[1768389674618,0.77886721,930.34,928.73,2.6562837]
[1768389674819,0.77886721,930.33,928.73,2.6562837]
[1768389675017,0.77886721,930.32,928.73,2.6562837]
[1768389675319,0.77886721,930.31,928.75,2.6562837]
[1768389675517,0.77886721,930.3,928.75,2.6562837]
[1768389675816,0.77886721,930.29,928.75,2.6562837]
[1768389676021,0.77886721,930.28,928.75,2.6562837]
[1768389676322,1.182,930.65,928.8,2.6562837]
[1768389676618,0.77893089,930.64,928.81,2.6562837]
[1768389676824,0.77893089,930.63,928.81,2.6562837]
[1768389677022,0.77893089,930.62,928.81,2.6562837]
[1768389677321,0.77893089,930.61,928.82,2.6562837]
[1768389677517,0.77893089,930.6,928.82,2.6562837]
[1768389677819,0.77893089,930.59,928.82,2.6562837]
[1768389678118,0.77893089,930.58,928.82,2.6562837]
[1768389678421,0.77893089,930.57,928.82,2.6562837]
[1768389678619,0.77893089,930.56,928.82,2.6562837]
[1768389678921,0.77893089,930.55,928.82,2.6562837]
[1768389679121,0.77893089,930.54,928.82,2.6562837]
[1768389679322,0.77893089,930.53,928.83,2.6562837]
[1768389679619,0.77893089,930.52,928.83,2.6562837]
[1768389679922,0.77893089,930.51,928.83,2.6562837]
[1768389680123,0.77893089,930.5,928.83,2.6562837]
[1768389680318,0.77893089,930.49,928.83,2.6562837]
[1768389680620,0.77893089,930.48,928.83,2.6562837]
[1768389680820,0.77893089,930.47,928.83,2.6562837]
[1768389681022,0.77893089,930.46,928.83,2.6562837]
[1768389681324,0.77893089,930.45,928.84,2.6562837]
[1768389681524,0.77893089,930.44,928.84,2.6562837]
[1768389681724,0.77893089,930.43,928.84,2.6562837]
[1768389681921,0.77893089,930.42,928.84,2.6562837]
[1768389682126,0.77893089,930.41,928.84,2.6562837]
[1768389682328,0.77893089,930.4,928.84,2.6562837]
[1768389682523,0.77893089,930.39,928.84,2.6562837]
[1768389682729,0.77893089,930.38,928.84,2.6562837]
[1768389683027,0.77893089,930.37,928.84,2.6562837]
[1768389683228,0.77893089,930.36,928.84,2.6562837]
[1768389683422,0.77893089,930.35,928.85,2.6562837]
[1768389683622,0.77893089,930.34,928.85,2.6562837]
[1768389683828,0.77893089,930.33,928.85,2.6562837]
[1768389684023,0.77893089,930.32,928.85,2.6562837]
[1768389684328,0.77893089,930.31,928.85,2.6562837]
[1768389684523,0.77893089,930.3,928.85,2.6562837]
[1768389684828,0.77893089,930.29,928.85,2.6562837]
[1768389685023,0.77893089,930.28,928.85,2.6562837]
[1768389685228,0.77893089,930.27,928.85,2.6562837]
[1768389685529,0.77893089,930.26,928.86,2.6562837]
[1768389685728,1.182,930.65,928.86,2.6562837]
[1768389685928,0.77912112,930.64,928.86,2.6562837]
[1768389686129,0.77912112,930.63,928.86,2.6562837]
[1768389686329,0.77912112,930.62,928.86,2.6562837]
[1768389686529,0.77912112,930.61,928.86,2.6562837]
[1768389686825,0.77912112,930.6,928.86,2.6562837]
[1768389687026,0.77912112,930.59,928.85,2.6562837]
[1768389687326,0.77912112,930.58,928.85,2.6562837]
[1768389687530,0.77912112,930.57,928.85,2.6562837]
[1768389687728,0.77912112,930.56,928.85,2.6562837]
[1768389687929,0.77912112,930.55,928.85,2.6562837]
[1768389688127,0.77912112,930.54,928.85,2.6562837]
[1768389688323,0.77912112,930.53,928.85,2.6562837]
[1768389688525,0.77912112,930.52,928.85,2.6562837]
[1768389688728,0.77912112,930.51,928.85,2.6562837]
[1768389688926,0.77912112,930.5,928.85,2.6562837]
[1768389689225,0.77912112,930.49,928.85,2.6562837]
[1768389689426,0.77912112,930.48,928.85,2.6562837]
[1768389689626,0.77912112,930.47,928.85,2.6562837]
[1768389689827,0.77912112,930.46,928.86,2.6562837]
[1768389690026,0.77912112,930.45,928.86,2.6562837]
[1768389690330,0.77912112,930.44,928.86,2.6562837]
[1768389690530,0.77912112,930.43,928.86,2.6562837]
[1768389690831,0.77912112,930.42,928.86,2.6562837]
[1768389691127,0.77912112,930.41,928.86,2.6562837]
[1768389691331,0.77912112,930.4,928.86,2.6562837]
[1768389691532,0.77912112,930.39,928.86,2.6562837]
[1768389691733,0.77912112,930.38,928.86,2.6562837]
[1768389692029,0.77912112,930.37,928.86,2.6562837]
[1768389692333,0.77912112,930.36,928.86,2.6562837]
[1768389692530,0.77912112,930.35,928.86,2.6562837]
[1768389692733,0.77912112,930.34,928.86,2.6562837]
[1768389692930,0.77912112,930.33,928.86,2.6562837]
[1768389693132,0.77912112,930.32,928.86,2.6562837]
[1768389693333,0.77912112,930.31,928.86,2.6562837]
[1768389693537,0.77912112,930.3,928.86,2.6562837]
[1768389693837,0.77912112,930.29,928.86,2.6562837]
[1768389694137,0.77912112,930.28,928.86,2.6562837]
[1768389694334,0.77912112,930.27,928.86,2.6562837]
[1768389694531,0.77912112,930.26,928.86,2.6562837]
[1768389694731,0.77912112,930.25,928.86,2.6562837]
[1768389694938,0.77912112,930.24,928.86,2.6562837]
[1768389695234,1.182,930.65,928.86,2.6562837]
[1768389695438,0.78116567,930.64,928.99,2.6562837]
[1768389695635,0.78116567,930.63,928.99,2.6562837]
[1768389695836,0.78116567,930.62,928.99,2.6562837]
[1768389696036,0.78116567,930.61,928.99,2.6562837]
[1768389696237,0.78116567,930.6,928.99,2.6562837]
[1768389696436,0.78116567,930.59,928.98,2.6562837]
[1768389696640,0.78116567,930.58,928.98,2.6562837]
[1768389696840,0.78116567,930.57,928.98,2.6562837]
[1768389697038,0.78116567,930.56,928.98,2.6562837]
[1768389697242,0.78116567,930.55,928.98,2.6562837]
[1768389697440,0.78116567,930.55,928.72,0.18702639]
[1768389697441,0.78116567,930.54,928.97,2.6562837]
[1768389697638,0.78116567,930.53,928.97,2.6562837]
[1768389697838,0.78116567,930.52,928.97,2.6562837]
[1768389698037,0.78116567,930.51,928.97,2.6562837]
[1768389698240,0.78116567,930.5,928.97,2.6562837]
[1768389698439,0.78116567,930.49,928.97,2.6562837]
[1768389698639,0.78116567,930.48,928.97,2.6562837]
[1768389698839,0.78116567,930.47,928.97,2.6562837]
[1768389699042,0.78116567,930.46,928.97,2.6562837]
[1768389699243,0.78116567,930.45,928.97,2.6562837]
[1768389699438,0.78116567,930.44,928.97,2.6562837]
[1768389699738,0.78116567,930.43,928.97,2.6562837]
[1768389699938,0.78116567,930.42,928.97,2.6562837]
[1768389700143,0.78116567,930.41,928.99,2.6562837]
[1768389700342,0.78116567,930.4,928.99,2.6562837]
[1768389700540,0.78116567,930.4,928.72,0.18702639]
[1768389700541,1.182,930.65,929.0,2.6562837]
[1768389700840,0.78068792,930.64,929.0,2.6562837]
[1768389701141,0.78068792,930.63,929.0,2.6562837]
[1768389701439,0.78068792,930.62,929.0,2.6562837]
[1768389701639,0.78068792,930.61,928.99,2.6562837]
[1768389701839,0.78068792,930.6,928.99,2.6562837]
[1768389702038,0.78068792,930.59,928.99,2.6562837]
[1768389702339,1.182,930.65,929.15,2.6562837]
[1768389702643,0.78033956,930.64,929.17,2.6562837]
[1768389702844,0.78033956,930.63,929.17,2.6562837]
[1768389703046,1.182,930.65,929.17,2.6562837]
[1768389703844,1.182,930.65,929.15,2.6562837]
[1768389704242,1.182,930.65,929.14,2.6562837]
[1768389705246,1.182,930.65,929.13,2.6562837]
[1768389708446,1.182,930.65,929.21,2.6562837]
[1768389709450,1.182,930.65,929.2,2.6562837]
[1768389710550,1.182,930.65,928.86,3.7187971]
[1768389710551,1.182,930.65,929.4,2.6562837]
[1768389711548,1.182,930.65,929.37,2.6562837]
[1768389711946,0.01209636,931.19,929.37,2.6562837]
[1768389712149,0.01209636,931.19,929.65,2.6562837]
[1768389712349,0.18692743,931.89,929.65,2.6562837]
[1768389712553,0.77704075,931.88,929.65,2.6562837]
[1768389712752,0.77704075,931.87,929.59,2.6562837]
[1768389713051,0.77704075,931.86,929.59,2.6562837]
[1768389713253,0.77704075,931.85,929.59,2.6562837]
[1768389713453,0.77704075,931.84,929.59,2.6562837]
[1768389713652,0.77704075,931.83,929.61,2.6562837]
[1768389713849,0.77704075,931.82,929.61,2.6562837]
[1768389714050,0.77704075,931.81,929.61,2.6562837]
[1768389714349,0.77704075,931.8,929.58,2.6562837]
[1768389714548,0.77704075,931.79,929.58,2.6562837]
[1768389714849,0.77704075,931.78,929.53,2.6562837]
[1768389715053,0.77704075,931.77,929.53,2.6562837]
[1768389715249,0.77704075,931.76,929.53,2.6562837]
[1768389715448,0.77704075,931.75,929.53,2.6562837]
[1768389715651,0.77704075,931.74,929.53,2.6562837]
[1768389715852,0.77704075,931.73,929.5,2.6562837]
[1768389716052,0.77704075,931.72,929.5,2.6562837]
[1768389716252,0.77704075,931.71,929.46,2.6562837]
[1768389716452,0.77704075,931.7,929.46,2.6562837]
[1768389716651,0.77704075,931.69,929.46,2.6562837]
[1768389716951,0.77704075,931.68,929.46,2.6562837]
[1768389717152,0.77704075,931.67,929.46,2.6562837]
[1768389717348,0.77704075,931.66,929.44,2.6562837]
[1768389717550,0.77704075,931.65,929.44,2.6562837]
[1768389717752,0.77704075,931.64,929.44,2.6562837]
[1768389717952,0.77704075,931.63,929.44,2.6562837]
[1768389718249,0.77704075,931.62,929.41,2.6562837]
[1768389718552,0.77704075,931.61,929.41,2.6562837]
[1768389718753,0.77704075,931.6,929.41,2.6562837]
[1768389718953,0.997,931.75,929.41,2.6562837]
[1768389719253,0.77379619,931.74,929.41,2.6562837]
[1768389719456,0.77379619,931.73,929.41,2.6562837]
[1768389719649,0.77379619,931.72,929.41,2.6562837]
[1768389719850,0.77379619,931.71,929.41,2.6562837]
[1768389720153,0.77379619,931.7,929.41,2.6562837]
[1768389720353,0.77379619,931.69,929.41,2.6562837]
[1768389720650,0.77379619,931.68,929.41,2.6562837]
[1768389720849,0.77379619,931.67,929.41,2.6562837]
[1768389721053,0.77379619,931.66,929.41,2.6562837]
[1768389721255,0.77379619,931.65,929.41,2.6562837]
[1768389721453,0.997,931.75,929.39,2.6562837]
[1768389721653,0.77314276,931.74,929.39,2.6562837]
[1768389721854,0.77314276,931.73,929.39,2.6562837]
[1768389722051,0.77314276,931.72,929.41,2.6562837]
[1768389722255,0.77314276,931.71,929.41,2.6562837]
[1768389722456,0.77314276,931.7,929.41,2.6562837]
[1768389722653,0.77314276,931.69,929.39,2.6562837]
[1768389722850,0.77314276,931.68,929.39,2.6562837]
[1768389723051,0.997,931.75,929.39,2.6562837]
[1768389723253,0.77284501,931.74,929.39,2.6562837]
[1768389723449,0.77284501,931.73,929.39,2.6562837]
[1768389723653,0.997,931.75,929.38,2.6562837]
[1768389723951,0.77333183,931.74,929.38,2.6562837]
[1768389724155,0.997,931.75,929.41,2.6562837]
[1768389724352,0.77308525,931.74,929.41,2.6562837]
[1768389724656,0.997,931.75,929.4,2.6562837]
[1768389724955,0.77308555,931.74,929.4,2.6562837]
[1768389725156,0.77308555,931.73,929.36,2.6562837]
[1768389725358,0.77308555,931.72,929.36,2.6562837]
[1768389725560,0.997,931.75,929.36,2.6562837]
[1768389725757,0.77288084,931.74,929.36,2.6562837]
[1768389726054,0.77288084,931.73,929.36,2.6562837]
[1768389726359,0.772589,931.72,929.35,2.6562837]
[1768389726557,0.997,931.75,929.35,2.6562837]
[1768389726857,0.997,931.75,929.0,3.7187971]
[1768389726858,0.77241451,931.74,929.34,2.6562837]
[1768389727057,0.77241451,931.73,929.34,2.6562837]
[1768389727255,0.997,931.75,929.33,2.6562837]
[1768389727559,0.77231287,931.74,929.33,2.6562837]
[1768389727757,0.77231287,931.73,929.33,2.6562837]
[1768389727957,0.997,931.75,929.33,2.6562837]
[1768389728157,0.77227741,931.74,929.33,2.6562837]
[1768389728359,0.77227741,931.73,929.2,2.6562837]
[1768389728659,0.77227741,931.72,929.2,2.6562837]
[1768389728860,0.77227741,931.71,929.18,2.6562837]
[1768389729060,0.77227741,931.7,929.18,2.6562837]
[1768389729258,0.77227741,931.69,929.18,2.6562837]
[1768389729459,0.77227741,931.68,929.18,2.6562837]
[1768389729760,0.77227741,931.67,929.18,2.6562837]
[1768389729960,0.77227741,931.66,929.18,2.6562837]
[1768389730156,0.77227741,931.65,929.18,2.6562837]
[1768389730361,0.77227741,931.64,929.18,2.6562837]
[1768389730559,0.77227741,931.63,929.18,2.6562837]
[1768389730860,0.77227741,931.62,929.18,2.6562837]
[1768389731055,0.77227741,931.61,929.18,2.6562837]
[1768389731357,0.77227741,931.6,929.18,2.6562837]
[1768389731559,0.77227741,931.59,929.19,2.6562837]
[1768389731755,0.77227741,931.58,929.19,2.6562837]
[1768389731958,0.77227741,931.57,929.19,2.6562837]
[1768389732158,0.997,931.75,929.19,2.6562837]
[1768389732358,0.77229903,931.74,929.19,2.6562837]
[1768389732560,0.77229903,931.73,929.2,2.6562837]
[1768389732760,0.77229903,931.72,929.2,2.6562837]
[1768389732961,0.77229903,931.71,929.2,2.6562837]
[1768389733261,0.77229903,931.7,929.2,2.6562837]
[1768389733460,0.77229903,931.69,929.2,2.6562837]
[1768389733660,0.77229903,931.68,929.2,2.6562837]
[1768389733855,0.997,931.75,929.2,2.6562837]
[1768389733856,0.77229903,931.67,929.2,2.6562837]
[1768389734060,0.77229903,931.66,929.2,2.6562837]
[1768389734258,0.77229903,931.65,929.21,2.6562837]
[1768389734459,0.77229903,931.64,929.21,2.6562837]
[1768389734662,0.77229903,931.63,929.16,2.6562837]
[1768389734862,0.77229903,931.62,929.16,2.6562837]
[1768389735162,0.77229903,931.61,929.1,2.6562837]
[1768389735361,0.77229903,931.6,929.1,2.6562837]
[1768389735662,0.77229903,931.59,929.11,2.6562837]
[1768389735958,0.77229903,931.58,929.11,2.6562837]
[1768389736259,0.77229903,931.57,929.11,2.6562837]
[1768389736459,0.77229903,931.56,929.11,2.6562837]
[1768389736658,0.77229903,931.55,929.11,2.6562837]
[1768389736860,0.77229903,931.54,929.12,2.6562837]
[1768389737058,0.997,931.75,929.12,2.6562837]
[1768389737059,0.77229903,931.53,929.12,2.6562837]
[1768389737262,0.77229903,931.52,929.14,2.6562837]
[1768389737459,0.77229903,931.51,929.14,2.6562837]
[1768389737660,0.77229903,931.5,929.14,2.6562837]
[1768389737859,0.77229903,931.49,929.14,2.6562837]
[1768389738062,0.77229903,931.48,929.14,2.6562837]
[1768389738260,0.77229903,931.47,929.16,2.6562837]
[1768389738465,0.77229903,931.46,929.16,2.6562837]
[1768389738760,0.77229903,931.45,929.16,2.6562837]
[1768389738959,0.77229903,931.44,929.16,2.6562837]
[1768389739162,0.77229903,931.43,929.16,2.6562837]
[1768389739458,0.77229903,931.42,929.18,2.6562837]
[1768389739660,0.77229903,931.41,929.18,2.6562837]
[1768389739861,0.77229903,931.4,929.18,2.6562837]
[1768389740061,0.77229903,931.39,929.18,2.6562837]
[1768389740264,0.77229903,931.38,929.18,2.6562837]
[1768389740461,0.77229903,931.37,929.19,2.6562837]
[1768389740759,0.77229903,931.36,929.19,2.6562837]
[1768389740958,0.77229903,931.35,929.19,2.6562837]
[1768389741159,0.77229903,931.34,929.19,2.6562837]
[1768389741360,0.77229903,931.33,929.19,2.6562837]
[1768389741558,0.77229903,931.32,929.21,2.6562837]
[1768389741765,0.997,931.75,929.21,2.6562837]
[1768389741965,0.77480733,931.74,929.21,2.6562837]
[1768389742164,0.77480733,931.73,929.21,2.6562837]
[1768389742366,0.77480733,931.72,929.21,2.6562837]
[1768389742566,0.77480733,931.71,929.23,2.6562837]
[1768389742766,0.77480733,931.7,929.23,2.6562837]
[1768389742967,0.77480733,931.69,929.23,2.6562837]